fUST/lending_fUST_20250610
["ID","MTS","AMOUNT","RATE_DAILY","PERIOD"]
[365200457,1749531041512,-558.56247194,0.00021095,4]
[365200459,1749531041522,-460.0,0.00021095,4]
[365200461,1749531041531,-460.0,0.00021095,4]
[365200463,1749531041540,-400.0,0.00021095,4]
[365200465,1749531041549,-460.0,0.00021095,4]
[365200467,1749531041559,-460.0,0.00021095,4]
[365200469,1749531041569,-438.09731555,0.00021095,4]
[365200471,1749531041578,-447.9405307,0.00021095,4]
[365200473,1749531041587,-460.0,0.00021095,4]
[365200475,1749531041597,-447.89156327,0.00021095,4]
[365200477,1749531041607,-436.6328812,0.00021095,4]
[365200479,1749531041616,-442.93602316,0.00021095,4]
[365200481,1749531041626,-432.14578769,0.00021095,4]
[365200483,1749531041635,-460.0,0.00021095,4]
[365200485,1749531041644,-460.0,0.00021095,4]
[365200487,1749531041653,-460.0,0.00021095,4]
[365200489,1749531041663,-460.0,0.00021095,4]
[365200491,1749531041673,-460.0,0.00021095,4]
[365200493,1749531041682,-460.0,0.00021095,4]
[365200495,1749531041691,-424.79783083,0.00021095,4]
[365200497,1749531041701,-460.0,0.00021095,4]
[365200499,1749531041710,-460.0,0.00021095,4]
[365200501,1749531041719,-460.0,0.00021095,4]
[365200503,1749531041728,-460.0,0.00021095,4]
[365200505,1749531041737,-460.0,0.00021095,4]
[365200507,1749531041747,-460.0,0.00021095,4]
[365200508,1749531041756,-460.0,0.00021095,4]
[365200519,1749531041851,-460.0,0.00021095,4]
[365200521,1749531041861,-430.99498076,0.00021095,4]
[365200523,1749531041870,-789.03,0.00021095,4]
[365200525,1749531041880,-523.24,0.00021095,4]
[365200527,1749531041889,-460.0,0.00021095,4]
[365200529,1749531041898,-523.24,0.00021095,4]
[365200531,1749531041907,-435.39304477,0.00021095,4]
[365200533,1749531041916,-523.24,0.00021095,4]
[365200535,1749531041925,-521.9828563,0.00021095,4]
[365200537,1749531041934,-523.24,0.00021095,4]
[365200539,1749531041943,-523.24,0.00021095,4]
[365200541,1749531041952,-523.24,0.00021095,4]
[365200543,1749531041961,-523.24,0.00021095,4]
[365200544,1749531041970,-523.24,0.00021095,4]
[365200547,1749531041979,-523.24,0.00021095,4]
[365200549,1749531041991,-460.0,0.00021095,4]
[365200551,1749531041999,-523.24,0.00021095,4]
[365200552,1749531042009,-523.24,0.00021095,4]
[365200555,1749531042019,-523.24,0.00021095,4]
[365200556,1749531042028,-523.24,0.00021095,4]
[365200559,1749531042038,-523.24,0.00021095,4]
[365200561,1749531042047,-432.09194055,0.00021095,4]
[365200563,1749531042057,-460.0,0.00021095,4]
[365200564,1749531042066,-460.0,0.00021095,4]
[365200567,1749531042076,-460.0,0.00021095,4]
[365200568,1749531042085,-452.58586406,0.00021095,4]
[365200570,1749531042094,-460.0,0.00021095,4]
[365200573,1749531042104,-460.0,0.00021095,4]
[365200574,1749531042113,-460.0,0.00021095,4]
[365200576,1749531042123,-460.0,0.00021095,4]
[365200578,1749531042132,-427.95162411,0.00021095,4]
[365200580,1749531042142,-510.40401963,0.00021095,4]
[365200583,1749531042151,-460.0,0.00021095,4]
[365200585,1749531042161,-460.0,0.00021095,4]
[365200586,1749531042170,-451.84667766,0.00021095,4]
[365200589,1749531042180,-460.0,0.00021095,4]
[365200591,1749531042189,-460.0,0.00021095,4]
[365200593,1749531042199,-460.0,0.00021095,4]
[365200595,1749531042208,-440.98861628,0.00021095,4]
[365200597,1749531042218,-904.42,0.00021095,4]
[365200599,1749531042227,-432.44688888,0.00021095,4]
[365200601,1749531042236,-460.0,0.00021095,4]
[365200602,1749531042245,-1269.66,0.00021095,4]
[365200604,1749531042255,-460.0,0.00021095,4]
[365200606,1749531042264,-441.72000213,0.00021095,4]
[365200608,1749531042274,-460.0,0.00021095,4]
[365200610,1749531042284,-448.27536688,0.00021095,4]
[365200613,1749531042293,-460.0,0.00021095,4]
[365200614,1749531042303,-460.0,0.00021095,4]
[365200616,1749531042313,-460.0,0.00021095,4]
[365200618,1749531042322,-460.0,0.00021095,4]
[365200620,1749531042331,-485.40930971,0.00021095,4]
[365200623,1749531042340,-447.79598858,0.00021095,4]
[365200626,1749531042349,-460.0,0.00021095,4]
[365200629,1749531042359,-565.47797589,0.00021095,4]
[365200631,1749531042368,-451.64701,0.00021095,4]
[365200633,1749531042377,-460.0,0.00021095,4]
[365200635,1749531042386,-440.68403343,0.00021095,4]
[365200637,1749531042395,-460.0,0.00021095,4]
[365200639,1749531042405,-460.0,0.00021095,4]
[365200641,1749531042415,-460.0,0.00021095,2]
[365200643,1749531042427,-432.45887345,0.00021095,4]
[365200645,1749531042436,-460.0,0.00021095,4]
[365200647,1749531042446,-442.78035968,0.00021095,4]
[365200649,1749531042456,-460.0,0.00021095,4]
[365200651,1749531042466,-460.0,0.00021095,4]
[365200653,1749531042475,-460.0,0.00021095,4]
[365200655,1749531042484,-4205.02,0.00021095,4]
[365200657,1749531042495,-199.81251164,0.00021095,4]
[365200659,1749531042504,-460.0,0.00021095,4]
[365200661,1749531042514,-460.0,0.00021095,4]
[365200663,1749531042524,-420.3082865,0.00021095,4]
[365200665,1749531042534,-460.0,0.00021095,4]
[365200667,1749531042543,-460.0,0.00021095,4]
[365200668,1749531042553,-439.30186114,0.00021095,4]
[365200669,1749531042564,-460.0,0.00021095,4]
[365200670,1749531042573,-460.0,0.00021095,4]
[365200671,1749531042583,-460.0,0.00021095,4]
[365200673,1749531042592,-460.0,0.00021095,4]
[365200675,1749531042601,-460.0,0.00021095,4]
[365200677,1749531042610,-1018.83,0.00021095,4]
[365200679,1749531042620,-923.71,0.00021095,4]
[365200681,1749531042629,-460.0,0.00021095,4]
[365200683,1749531042638,-460.0,0.00021095,4]
[365200685,1749531042648,-460.0,0.00021095,4]
[365200687,1749531042657,-460.0,0.00021095,4]
[365200689,1749531042666,-434.29196414,0.00021095,4]
[365200691,1749531042676,-501.79639993,0.00021095,4]
[365200692,1749531042685,-460.0,0.00021095,4]
[365200695,1749531042695,-460.0,0.00021095,4]
[365200696,1749531042704,-439.00533708,0.00021095,4]
[365200698,1749531042713,-446.0220224,0.00021095,4]
[365200700,1749531042723,-460.0,0.00021095,4]
[365200703,1749531042732,-460.0,0.00021095,4]
[365200705,1749531042742,-507.21302289,0.00021095,4]
[365200707,1749531042751,-460.0,0.00021095,4]
[365200709,1749531042760,-460.0,0.00021095,4]
[365200711,1749531042770,-466.78213744,0.00021095,4]
[365200713,1749531042779,-460.0,0.00021095,4]
[365200715,1749531042789,-460.0,0.00021095,4]
[365200717,1749531042798,-460.0,0.00021095,4]
[365200719,1749531042807,-411.86441122,0.00021095,4]
[365200721,1749531042817,-460.0,0.00021095,4]
[365200723,1749531042827,-460.0,0.00021095,4]
[365200725,1749531042835,-460.0,0.00021095,4]
[365200727,1749531042845,-460.0,0.00021095,4]
[365200729,1749531042855,-284.72750234,0.00021095,4]
[365200731,1749531042864,-454.70365851,0.00021095,4]
[365200733,1749531042874,-460.0,0.00021095,4]
[365200735,1749531042883,-460.0,0.00021095,4]
[365200737,1749531042893,-341.70204355,0.00021095,4]
[365200739,1749531042902,-563.94702947,0.00021095,4]
[365200741,1749531042913,-460.0,0.00021095,4]
[365200743,1749531042922,-461.63834265,0.00021095,4]
[365200745,1749531042931,-446.03147773,0.00021095,4]
[365200747,1749531042940,-460.0,0.00021095,4]
[365200749,1749531042950,-720.71,0.00021095,4]
[365200751,1749531042959,-460.0,0.00021095,4]
[365200753,1749531042968,-460.0,0.00021095,4]
[365200755,1749531042978,-435.81798436,0.00021095,4]
[365200757,1749531042987,-460.0,0.00021095,4]
[365200759,1749531042998,-460.0,0.00021095,4]
[365200761,1749531043007,-460.0,0.00021095,4]
[365200763,1749531043018,-427.27,0.00021095,4]
[365200765,1749531043027,-432.12317424,0.00021095,4]
[365200767,1749531043037,-442.61806185,0.00021095,4]
[365200769,1749531043046,-460.0,0.00021095,4]
[365200771,1749531043056,-504.68793241,0.00021095,4]
[365200773,1749531043065,-395.45806478,0.00021095,4]
[365200775,1749531043075,-460.0,0.00021095,4]
[365200777,1749531043084,-432.88495204,0.00021095,4]
[365200779,1749531043094,-460.0,0.00021095,4]
[365200782,1749531043104,-221.861082,0.00021095,4]
[365200784,1749531043114,-318.71289076,0.00021095,4]
[365200786,1749531043123,-440.0,0.00021095,4]
[365200788,1749531043132,-460.0,0.00021095,4]
[365200790,1749531043142,-460.0,0.00021095,4]
[365200792,1749531043151,-419.79344522,0.00021095,4]
[365200794,1749531043160,-460.0,0.00021095,4]
[365200796,1749531043171,-485.86,0.000211,2]
[365200798,1749531043180,-2346.71,0.000211,2]
[365200800,1749531043190,-2500.81931676,0.00021132,2]
[365200802,1749531043199,-301.87022261,0.00021156,2]
[365200804,1749531043208,-576.64661529,0.00021176,4]
[365200806,1749531043218,-287.80421361,0.00021188,2]
[365200808,1749531043228,-523.24,0.00021197,4]
[365200810,1749531043237,-2500.81931676,0.00021269,2]
[365200812,1749531043247,-576.64661529,0.00021314,5]
[365200814,1749531043256,-938.05405312,0.00021315,2]
[365200816,1749531043266,-523.24,0.00021368,4]
[365200818,1749531043275,-523.24,0.00021368,4]
[365200820,1749531043285,-523.24,0.00021368,4]
[365200822,1749531043295,-523.24,0.00021368,4]
[365200824,1749531043304,-523.24,0.00021368,4]
[365200826,1749531043314,-523.24,0.00021368,4]
[365200828,1749531043323,-523.24,0.00021368,4]
[365200830,1749531043332,-523.24,0.00021368,4]
[365200832,1749531043341,-523.4760634,0.00021368,4]
[365200834,1749531043350,-424.75716097,0.00021369,4]
[365200836,1749531043359,-225.12870402,0.00021369,4]
[365200838,1749531043368,-426.05433659,0.00021369,4]
[365200840,1749531043378,-420.0,0.00021369,4]
[365200842,1749531043388,-519.84450365,0.00021369,4]
[365200844,1749531043398,-420.0,0.00021369,4]
[365200846,1749531043407,-416.70137211,0.00021369,4]
[365200848,1749531043419,-422.66612154,0.00021369,4]
[365200850,1749531043428,-420.0,0.00021369,4]
[365200852,1749531043438,-424.0461632,0.00021369,4]
[365200854,1749531043447,-420.0,0.00021369,4]
[365200856,1749531043457,-420.0,0.00021369,4]
[365200858,1749531043467,-460.0,0.00021369,4]
[365200859,1749531043476,-212.28374622,0.00021369,4]
[365200862,1749531043485,-423.12398569,0.00021369,4]
[365200863,1749531043496,-460.0,0.00021369,4]
[365200865,1749531043506,-460.0,0.00021369,4]
[365200867,1749531043518,-350.14292712,0.00021369,4]
[365200869,1749531043528,-460.0,0.00021369,4]
[365200871,1749531043537,-460.0,0.00021369,4]
[365200873,1749531043547,-403.36540105,0.00021369,4]
[365200875,1749531043557,-176.77057426,0.00021369,4]
[365200877,1749531043567,-337.36204154,0.00021369,4]
[365200880,1749531043576,-460.0,0.00021369,4]
[365200881,1749531043586,-395.33166138,0.00021369,4]
[365200883,1749531043595,-407.05904662,0.00021369,4]
[365200886,1749531043605,-572.98914834,0.00021369,4]
[365200887,1749531043614,-460.0,0.00021369,4]
[365200890,1749531043624,-460.0,0.00021369,4]
[365200892,1749531043634,-460.0,0.00021369,4]
[365200894,1749531043644,-460.0,0.00021369,4]
[365200896,1749531043653,-460.0,0.00021369,4]
[365200897,1749531043663,-460.0,0.00021369,4]
[365200898,1749531043672,-460.0,0.00021369,4]
[365200899,1749531043682,-460.0,0.00021369,4]
[365200900,1749531043691,-460.0,0.00021369,4]
[365200901,1749531043701,-420.15505127,0.00021369,4]
[365200902,1749531043711,-460.0,0.00021369,4]
[365200903,1749531043720,-584.31312303,0.00021369,4]
[365200904,1749531043730,-259.58917585,0.00021369,4]
[365200905,1749531043739,-460.0,0.00021369,4]
[365200906,1749531043749,-460.0,0.00021369,4]
[365200907,1749531043759,-424.43884586,0.00021369,4]
[365200908,1749531043770,-455.84399125,0.00021369,4]
[365200909,1749531043780,-460.0,0.00021369,4]
[365200910,1749531043789,-382.41353138,0.00021369,4]
[365200911,1749531043799,-460.0,0.00021369,4]
[365200912,1749531043808,-460.0,0.00021369,4]
[365200913,1749531043911,-379.16532997,0.00021369,4]
[365200914,1749531043921,-460.0,0.00021369,4]
[365200915,1749531043931,-348.98118321,0.00021369,4]
[365200916,1749531043941,-460.0,0.00021369,4]
[365200918,1749531043950,-460.0,0.00021369,4]
[365200920,1749531043959,-515.72189091,0.00021369,4]
[365200921,1749531043969,-460.0,0.00021369,4]
[365200923,1749531043978,-387.16804418,0.00021369,4]
[365200925,1749531043987,-460.0,0.00021369,4]
[365200927,1749531043996,-400.23941881,0.00021369,4]
[365200929,1749531044005,-460.0,0.00021369,4]
[365200931,1749531044015,-460.0,0.00021369,4]
[365200933,1749531044024,-460.0,0.00021369,4]
[365200935,1749531044033,-460.0,0.00021369,4]
[365200937,1749531044042,-460.0,0.00021369,4]
[365200939,1749531044051,-426.23219067,0.00021369,4]
[365200941,1749531044059,-429.03054221,0.00021369,4]
[365200943,1749531044069,-415.20753835,0.00021369,4]
[365200945,1749531044077,-201.6984096,0.00021369,4]
[365200947,1749531044086,-460.0,0.00021369,4]
[365200949,1749531044094,-414.55311723,0.00021369,4]
[365200951,1749531044103,-460.0,0.00021369,4]
[365200952,1749531044112,-460.0,0.00021369,4]
[365200954,1749531044121,-423.81911034,0.00021369,4]
[365200957,1749531044131,-460.0,0.00021369,4]
[365200959,1749531044140,-460.0,0.00021369,4]
[365200961,1749531044151,-460.0,0.00021369,4]
[365200963,1749531044160,-460.0,0.00021369,4]
[365200965,1749531044170,-460.0,0.00021369,4]
[365200967,1749531044179,-460.0,0.00021369,4]
[365200969,1749531044190,-460.0,0.00021369,4]
[365200971,1749531044200,-460.0,0.00021369,4]
[365200973,1749531044209,-416.97722116,0.00021369,4]
[365200975,1749531044217,-460.0,0.00021369,4]
[365200977,1749531044225,-405.67364283,0.00021369,4]
[365200979,1749531044233,-460.0,0.00021369,4]
[365200981,1749531044242,-460.0,0.00021369,4]
[365200983,1749531044251,-460.0,0.00021369,4]
[365200986,1749531044260,-433.24955385,0.00021369,4]
[365200988,1749531044270,-460.0,0.00021369,4]
[365200990,1749531044279,-458.63936939,0.00021369,4]
[365200992,1749531044289,-437.28477143,0.00021369,4]
[365200993,1749531044298,-335.46844349,0.00021369,4]
[365200996,1749531044308,-456.20893976,0.00021369,4]
[365200998,1749531044317,-401.95149616,0.00021369,4]
[365201000,1749531044327,-431.62202947,0.00021369,4]
[365201002,1749531044336,-460.0,0.00021369,4]
[365201004,1749531044345,-548.64853152,0.00021369,4]
[365201006,1749531044354,-460.0,0.00021369,4]
[365201008,1749531044364,-460.0,0.00021369,4]
[365201010,1749531044373,-460.0,0.00021369,4]
[365201012,1749531044382,-460.0,0.00021369,4]
[365201014,1749531044392,-420.0,0.00021369,4]
[365201016,1749531044401,-455.30692409,0.00021369,4]
[365201018,1749531044411,-460.0,0.00021369,4]
[365201020,1749531044424,-420.0,0.00021369,4]
[365201022,1749531044434,-419.75264853,0.00021369,4]
[365201024,1749531044443,-437.8328553,0.00021369,4]
[365201026,1749531044452,-460.0,0.00021369,4]
[365201028,1749531044462,-460.0,0.00021369,4]
[365201030,1749531044472,-440.10366807,0.00021369,4]
[365201032,1749531044481,-447.80857932,0.00021369,4]
[365201034,1749531044490,-432.37558514,0.00021369,4]
[365201036,1749531044501,-460.0,0.00021369,4]
[365201038,1749531044511,-432.95317103,0.00021369,4]
[365201040,1749531044520,-439.95066038,0.00021369,4]
[365201042,1749531044530,-460.0,0.00021369,4]
[365201044,1749531044539,-460.0,0.00021369,4]
[365201046,1749531044548,-460.0,0.00021369,4]
[365201048,1749531044558,-460.0,0.00021369,4]
[365201050,1749531044568,-460.0,0.00021369,4]
[365201052,1749531044577,-460.0,0.00021369,4]
[365201054,1749531044587,-360.2096067,0.00021369,4]
[365201056,1749531044597,-460.0,0.00021369,4]
[365201058,1749531044606,-431.19142415,0.00021369,4]
[365201060,1749531044615,-423.50962555,0.00021369,4]
[365201062,1749531044624,-1005.23,0.00021369,4]
[365201064,1749531044633,-460.0,0.00021369,4]
[365201066,1749531044643,-431.24577498,0.00021369,4]
[365201068,1749531044652,-460.0,0.00021369,4]
[365201070,1749531044661,-471.74302341,0.00021369,4]
[365201072,1749531044672,-460.0,0.00021369,4]
[365201074,1749531044681,-431.96801957,0.00021369,4]
[365201076,1749531044690,-460.0,0.00021369,4]
[365201078,1749531044699,-465.39748592,0.00021369,4]
[365201080,1749531044708,-460.0,0.00021369,4]
[365201082,1749531044717,-460.0,0.00021369,4]
[365201084,1749531044727,-460.0,0.00021369,4]
[365201086,1749531044736,-425.9328301,0.00021369,4]
[365201088,1749531044746,-460.0,0.00021369,4]
[365201090,1749531044755,-460.0,0.00021369,4]
[365201092,1749531044766,-460.0,0.00021369,4]
[365201094,1749531044775,-460.0,0.00021369,4]
[365201097,1749531044785,-442.41029712,0.00021369,4]
[365201099,1749531044795,-460.0,0.00021369,4]
[365201101,1749531044804,-460.0,0.00021369,4]
[365201102,1749531044814,-460.0,0.00021369,4]
[365201105,1749531044823,-460.0,0.00021369,4]
[365201107,1749531044832,-460.0,0.00021369,4]
[365201108,1749531044843,-460.0,0.00021369,4]
[365201111,1749531044852,-460.0,0.00021369,4]
[365201112,1749531044862,-588.66590516,0.00021369,4]
[365201114,1749531044871,-460.0,0.00021369,4]
[365201116,1749531044881,-460.0,0.00021369,4]
[365201119,1749531044891,-460.0,0.00021369,4]
[365201121,1749531044901,-460.0,0.00021369,4]
[365201123,1749531044910,-451.20349884,0.00021369,4]
[365201125,1749531044919,-460.0,0.00021369,4]
[365201127,1749531044928,-460.0,0.00021369,4]
[365201129,1749531044938,-350.0,0.00021369,2]
[365201131,1749531044947,-426.18955849,0.00021369,4]
[365201133,1749531044955,-460.0,0.00021369,4]
[365201135,1749531044964,-460.0,0.00021369,4]
[365201137,1749531044973,-460.0,0.00021369,4]
[365201139,1749531044982,-460.0,0.00021369,4]
[365201141,1749531044991,-400.96731701,0.00021369,4]
[365201143,1749531045000,-460.0,0.00021369,4]
[365201145,1749531045009,-460.0,0.00021369,4]
[365201147,1749531045019,-460.0,0.00021369,4]
[365201149,1749531045028,-504.58898354,0.00021369,4]
[365201151,1749531045036,-460.0,0.00021369,4]
[365201152,1749531045046,-444.37237823,0.00021369,4]
[365201154,1749531045055,-438.7699861,0.00021369,4]
[365201156,1749531045063,-383.18143397,0.00021369,4]
[365201158,1749531045072,-460.0,0.00021369,4]
[365201160,1749531045082,-460.0,0.00021369,4]
[365201162,1749531045091,-460.0,0.00021369,4]
[365201164,1749531045100,-460.0,0.00021369,4]
[365201166,1749531045110,-460.0,0.00021369,4]
[365201168,1749531045119,-460.0,0.00021369,4]
[365201170,1749531045128,-460.0,0.00021369,4]
[365201172,1749531045138,-435.80681706,0.00021369,4]
[365201174,1749531045147,-460.0,0.00021369,4]
[365201176,1749531045156,-460.0,0.00021369,4]
[365201178,1749531045165,-460.0,0.00021369,4]
[365201180,1749531045174,-460.0,0.00021369,4]
[365201182,1749531045182,-460.0,0.00021369,4]
[365201184,1749531045191,-417.09144284,0.00021369,4]
[365201186,1749531045200,-460.0,0.00021369,4]
[365201188,1749531045209,-460.0,0.00021369,4]
[365201190,1749531045219,-422.47181015,0.00021369,4]
[365201192,1749531045229,-460.0,0.00021369,4]
[365201194,1749531045238,-789.03,0.00021369,4]
[365201196,1749531045247,-417.06123806,0.00021369,4]
[365201198,1749531045257,-460.0,0.00021369,4]
[365201200,1749531045268,-460.0,0.00021369,4]
[365201202,1749531045277,-439.71524489,0.00021369,4]
[365201204,1749531045286,-416.08000112,0.00021369,4]
[365201206,1749531045295,-460.0,0.00021369,4]
[365201208,1749531045304,-460.0,0.00021369,4]
[365201210,1749531045313,-523.07306136,0.00021369,4]
[365201212,1749531045323,-415.40785107,0.00021369,4]
[365201214,1749531045332,-417.48198895,0.00021369,4]
[365201216,1749531045342,-415.33026484,0.00021369,4]
[365201218,1749531045351,-460.0,0.00021369,4]
[365201220,1749531045361,-413.63627246,0.00021369,4]
[365201222,1749531045370,-535.68191099,0.00021369,4]
[365201224,1749531045379,-904.42,0.00021369,4]
[365201226,1749531045388,-460.0,0.00021369,4]
[365201228,1749531045397,-1269.66,0.00021369,4]
[365201230,1749531045406,-407.00888609,0.00021369,4]
[365201232,1749531045417,-460.0,0.00021369,4]
[365201234,1749531045427,-326.00853514,0.00021369,4]
[365201236,1749531045436,-460.0,0.00021369,4]
[365201238,1749531045445,-162.28189791,0.00021369,4]
[365201240,1749531045454,-331.15799919,0.00021369,4]
[365201241,1749531045464,-460.0,0.00021369,4]
[365201244,1749531045474,-460.0,0.00021369,4]
[365201246,1749531045483,-460.0,0.00021369,4]
[365201248,1749531045495,-460.0,0.00021369,4]
[365201250,1749531045506,-460.0,0.00021369,2]
[365201252,1749531045517,-460.0,0.00021369,4]
[365201254,1749531045526,-421.9860729,0.00021369,4]
[365201256,1749531045535,-460.0,0.00021369,4]
[365201258,1749531045545,-460.0,0.00021369,4]
[365201260,1749531045555,-4205.02,0.00021369,4]
[365201262,1749531045564,-460.0,0.00021369,4]
[365201264,1749531045574,-420.39555993,0.00021369,4]
[365201266,1749531045584,-414.0709945,0.00021369,4]
[365201268,1749531045593,-460.0,0.00021369,4]
[365201270,1749531045603,-460.0,0.00021369,4]
[365201272,1749531045612,-419.22318209,0.00021369,4]
[365201274,1749531045621,-460.0,0.00021369,4]
[365201276,1749531045631,-460.0,0.00021369,4]
[365201278,1749531045640,-460.0,0.00021369,4]
[365201280,1749531045649,-1018.83,0.00021369,4]
[365201282,1749531045659,-923.71,0.00021369,4]
[365201284,1749531045668,-460.0,0.00021369,4]
[365201286,1749531045678,-426.34965842,0.00021369,4]
[365201297,1749531045770,-460.0,0.00021369,4]
[365201299,1749531045780,-460.0,0.00021369,4]
[365201300,1749531045789,-460.0,0.00021369,4]
[365201303,1749531045799,-431.74550248,0.00021369,4]
[365201304,1749531045809,-460.0,0.00021369,4]
[365201306,1749531045818,-460.0,0.00021369,4]
[365201308,1749531045828,-460.0,0.00021369,4]
[365201310,1749531045837,-414.3702714,0.00021369,4]
[365201312,1749531045847,-424.25160525,0.00021369,4]
[365201314,1749531045858,-422.65888534,0.00021369,4]
[365201317,1749531045868,-460.0,0.00021369,4]
[365201318,1749531045878,-460.0,0.00021369,4]
[365201320,1749531045887,-416.20144455,0.00021369,4]
[365201322,1749531045897,-480.87708232,0.00021369,4]
[365201324,1749531045906,-460.0,0.00021369,4]
[365201326,1749531045915,-460.0,0.00021369,4]
[365201328,1749531045925,-460.0,0.00021369,4]
[365201330,1749531045934,-460.0,0.00021369,4]
[365201332,1749531045944,-460.0,0.00021369,4]
[365201334,1749531045953,-720.71,0.00021369,4]
[365201336,1749531045962,-460.0,0.00021369,4]
[365201338,1749531045971,-415.35394477,0.00021369,4]
[365201340,1749531045980,-410.88724238,0.00021369,4]
[365201342,1749531045989,-426.79095004,0.00021369,4]
[365201344,1749531045999,-475.3581481,0.00021369,4]
[365201345,1749531046008,-460.0,0.00021369,4]
[365201346,1749531046017,-400.0,0.00021369,4]
[365201347,1749531046026,-428.97741568,0.00021369,4]
[365201348,1749531046035,-418.83361648,0.00021369,4]
[365201350,1749531046044,-460.0,0.00021369,4]
[365201352,1749531046053,-391.28073416,0.00021369,4]
[365201354,1749531046063,-500.0,0.00021405,2]
[365201356,1749531046072,-627.92,0.00021405,2]
[365201358,1749531046081,-500.0,0.00021405,2]
[365201360,1749531046090,-500.0,0.00021405,2]
[365201362,1749531046099,-496.75309488,0.00021405,2]
[365201364,1749531046108,-687.334358,0.00021405,2]
[365201366,1749531046117,-500.0,0.00021405,2]
[365201369,1749531046126,-500.0,0.00021405,2]
[365201371,1749531046135,-563.92690632,0.00021405,2]
[365201373,1749531046144,-646.80421751,0.00021405,2]
[365201375,1749531046153,-522.08948406,0.00021405,2]
[365201377,1749531046162,-500.0,0.00021405,2]
[365201379,1749531046171,-500.0,0.00021405,2]
[365201381,1749531046181,-500.0,0.00021405,2]
[365201383,1749531046189,-687.334358,0.00021405,2]
[365201385,1749531046199,-432.9499886,0.00021405,2]
[365201387,1749531046208,-500.0,0.00021405,2]
[365201389,1749531046217,-500.0,0.00021405,2]
[365201391,1749531046226,-500.0,0.00021405,2]
[365201393,1749531046235,-500.0,0.00021405,2]
[365201395,1749531046244,-687.334358,0.00021405,2]
[365201396,1749531046253,-500.0,0.00021405,2]
[365201399,1749531046263,-500.0,0.00021405,2]
[365201400,1749531046272,-500.0,0.00021405,2]
[365201402,1749531046282,-500.0,0.00021405,2]
[365201404,1749531046291,-500.0,0.00021405,2]
[365201406,1749531046300,-687.334358,0.00021405,2]
[365201408,1749531046308,-500.0,0.00021405,2]
[365201410,1749531046318,-500.0,0.00021405,2]
[365201412,1749531046327,-500.0,0.00021405,2]
[365201414,1749531046337,-500.0,0.00021405,2]
[365201416,1749531046346,-687.334358,0.00021405,2]
[365201418,1749531046355,-500.0,0.00021405,2]
[365201420,1749531046364,-272.47928584,0.00021405,2]
[365201422,1749531046373,-500.0,0.00021405,2]
[365201424,1749531046383,-625.9763444,0.00021405,2]
[365201426,1749531046392,-500.0,0.00021405,2]
[365201428,1749531046401,-687.334358,0.00021405,2]
[365201430,1749531046411,-500.0,0.00021405,2]
[365201432,1749531046424,-500.0,0.00021405,2]
[365201434,1749531046434,-500.0,0.00021405,2]
[365201436,1749531046444,-687.334358,0.00021405,2]
[365201438,1749531046453,-500.0,0.00021405,2]
[365201440,1749531046464,-500.0,0.00021405,2]
[365201442,1749531046474,-687.334358,0.00021405,2]
[365201444,1749531046483,-500.0,0.00021405,2]
[365201446,1749531046492,-500.0,0.00021405,2]